bitfinex/quotes_ETHUSD_20250507
["timestamp","ask_amount","ask_price","bid_price","bid_amount"]
[1746642637964,5.54852808,1802.3,1801.9,6.09957653]
[1746642638458,5.54890304,1802.2,1801.9,0.55]
[1746642638861,5.54938956,1802.0,1801.9,0.55]
[1746642639021,5.54969754,1801.9,1801.8,0.905]
[1746642639559,5.54880845,1802.2,1801.3,2.08]
[1746642639560,5.55080064,1801.6,1801.3,2.08]
[1746642639718,5.55080064,1801.6,1801.2,7.6317501]
[1746642640116,5.55177622,1801.3,1801.1,2.08]
[1746642640322,5.54969754,1801.9,1800.7,7.63326439]
[1746642640323,5.55226389,1801.1,1800.7,7.63326439]
[1746642640555,5.55198923,1801.2,1800.7,7.63319866]
[1746642640761,5.55198923,1801.2,1800.8,5.60848823]
[1746642640971,5.55145466,1801.4,1801.0,5.55245498]
[1746642641123,5.55145466,1801.4,1801.0,0.55]
[1746642641124,5.55123792,1801.4,1801.0,0.55]
[1746642641326,5.5500358,1801.8,1801.4,5.5509881]
[1746642641557,5.54920353,1802.1,1801.8,0.55]
[1746642641867,5.54950878,1802.0,1801.8,0.55]
[1746642642156,5.54950878,1802.0,1801.7,4.78884468]
[1746642642157,5.55024089,1801.8,1801.5,2.08]
[1746642642516,5.55032981,1801.7,1801.5,2.08]
[1746642642756,5.55062166,1801.6,1801.5,2.08]
[1746642642961,5.55032981,1801.7,1801.3,11.90334801]
[1746642643141,5.54949634,1802.0,1800.9,2.64084882]
[1746642643320,5.55098514,1801.5,1801.1,5.55212484]
[1746642643722,5.55136906,1801.4,1801.1,0.55]
[1746642643921,11.10289922,1801.4,1801.0,7.63233468]
[1746642644142,5.55153316,1801.4,1801.0,2.13551869]
[1746642644343,5.55156795,1801.3,1801.0,2.13551869]
[1746642644945,9.10466632,1801.9,1801.1,0.55]
[1746642645136,0.91046663,1801.8,1801.1,5.33884468]
[1746642645463,5.55048695,1801.7,1801.4,0.55]
[1746642645828,5.55063424,1801.6,1801.4,0.55]
[1746642646028,5.55048695,1801.7,1801.4,0.60550667]
[1746642646326,11.90140673,1802.0,1800.8,3.0]
[1746642646524,5.55101294,1801.5,1801.2,0.55]
[1746642646760,5.55062233,1801.6,1801.2,6.15734128]
[1746642646970,5.5509417,1801.5,1801.2,0.55]
[1746642647525,5.55151046,1801.4,1801.2,0.55]
[1746642647725,5.55156964,1801.3,1801.1,2.08]
[1746642648062,5.5517706,1801.3,1801.1,2.08]
[1746642648650,5.55201323,1801.2,1800.9,3.0]
[1746642648879,5.55201323,1801.2,1800.8,10.34170945]
[1746642649072,5.55201323,1801.2,1800.9,0.55]
[1746642649379,5.55217595,1801.1,1800.9,0.55]
[1746642649753,5.55201323,1801.2,1800.9,0.55]
[1746642650087,5.55140018,1801.4,1801.1,0.55]
[1746642651180,5.55079664,1801.6,1801.3,0.55]
[1746642651380,5.55044763,1801.7,1801.3,6.69074629]
[1746642651684,5.54987428,1801.9,1801.6,0.55]
[1746642651981,11.09915796,1802.0,1801.6,10.88924238]
[1746642652183,6.354,1802.2,1801.4,3.0]
[1746642652184,5.55043211,1801.7,1801.4,3.0]
[1746642652344,5.55062166,1801.6,1801.5,0.55]
[1746642652548,5.55062166,1801.6,1801.3,0.55]
[1746642653372,5.54995083,1801.9,1801.3,0.55]
[1746642653678,5.55019928,1801.8,1801.4,5.55110037]
[1746642653848,5.55000555,1801.8,1801.7,0.55]
[1746642654048,5.54984532,1801.9,1801.1,3.0]
[1746642654049,5.55062036,1801.7,1801.3,10.34017634]
[1746642654260,5.55079729,1801.6,1801.4,0.55]
[1746642654466,5.55062036,1801.7,1801.4,0.55]
[1746642654467,5.54908162,1802.1,1801.4,0.55]
[1746642654682,5.55021331,1801.8,1801.4,0.55]
[1746642654887,5.54982144,1801.9,1801.5,10.39523586]
[1746642655045,5.54982144,1801.9,1801.5,4.78884468]
[1746642655378,5.54990591,1801.9,1801.5,10.33966052]
[1746642655685,5.54918516,1802.1,1801.5,10.33966052]
[1746642655686,5.54928939,1802.1,1801.8,0.55]
[1746642655855,6.354,1802.2,1801.8,0.55]
[1746642655856,5.54961463,1802.0,1801.8,0.55]
[1746642656185,11.09857476,1802.1,1801.8,0.55]
[1746642656386,5.54922973,1802.1,1801.8,0.55]
[1746642656550,11.90290978,1802.2,1801.8,1.64446484]
[1746642656750,11.90290978,1802.2,1801.8,6.09985303]
[1746642656943,5.54890978,1802.2,1801.7,4.84433629]
[1746642657152,5.54933879,1802.1,1801.8,0.55]
[1746642657577,5.54939868,1802.0,1801.8,0.55]
[1746642657776,5.54939868,1802.0,1801.7,3.55]
[1746642658192,5.54446662,1803.6,1802.5,5.54758161]
[1746642658343,4.78884468,1803.8,1802.7,0.55]
[1746642658565,4.78884468,1803.8,1802.4,11.99514013]
[1746642658566,5.54593372,1803.2,1802.6,0.55]
[1746642658972,11.89952709,1803.3,1802.6,5.33884468]
[1746642659171,6.354,1803.3,1802.8,0.55]
[1746642659472,0.47888447,1803.7,1802.8,4.78884468]
[1746642659690,0.47888447,1803.7,1802.8,10.8856155]
[1746642659691,5.54523593,1803.4,1802.8,10.8856155]
[1746642659868,5.5449476,1803.5,1802.8,10.88560366]
[1746642660069,5.54513445,1803.4,1802.8,10.88560366]
[1746642660315,5.54457848,1803.6,1803.0,6.0962604]
[1746642660466,5.54499377,1803.5,1802.9,6.09644324]
[1746642660672,5.5451942,1803.4,1802.9,6.09644324]
[1746642660873,5.5449851,1803.5,1802.9,6.15186231]
[1746642661175,11.89838862,1803.7,1803.3,0.55]
[1746642661371,5.54459566,1803.6,1803.2,4.78884468]
[1746642661586,13.08814612,1803.7,1803.2,4.78884468]
[1746642661780,13.08814612,1803.7,1803.2,10.334335]
[1746642662339,5.54374507,1803.9,1803.4,5.33884468]
[1746642662481,5.54374507,1803.9,1803.4,10.93907249]
[1746642662685,5.54388402,1803.8,1803.4,10.88362772]
[1746642662885,5.54375326,1803.9,1803.4,6.09478304]
[1746642663196,12.19631158,1803.9,1803.4,6.09478304]
[1746642663395,5.5433866,1804.0,1803.4,5.33884468]
[1746642663600,5.54243167,1804.3,1803.9,5.54342936]
[1746642663798,5.54243167,1804.3,1803.9,5.54350057]
[1746642663987,6.353,1804.4,1804.0,10.88196891]
[1746642664193,5.54157166,1804.6,1804.2,0.55]
[1746642664502,5.54159281,1804.6,1804.3,0.55]
[1746642665081,11.89395204,1804.8,1804.3,1.69354056]
[1746642665281,6.353,1804.8,1804.5,6.0915822]
[1746642665589,6.353,1804.8,1804.5,0.55]
[1746642665919,6.353,1804.8,1804.4,0.055414]
[1746642666125,11.8939391,1804.8,1804.5,0.55]
[1746642666329,5.54064656,1804.9,1804.5,0.51735942]
[1746642666491,11.08198086,1804.8,1804.5,0.51735942]
[1746642666826,5.5409501,1804.8,1804.5,0.51735942]
[1746642667201,5.5409501,1804.8,1803.9,5.54324405]
[1746642667202,5.54183506,1804.5,1804.0,5.17631851]
[1746642667387,5.5426093,1804.3,1803.8,0.40556839]
[1746642667694,5.5430595,1804.1,1803.5,3.0]
[1746642667894,5.5424538,1804.3,1803.5,8.54475219]
[1746642668130,5.54301557,1804.1,1803.7,8.54399613]
[1746642668286,5.54271242,1804.2,1803.8,5.59924244]
[1746642668485,5.54300972,1804.1,1803.8,0.05543247]
[1746642668907,5.54285518,1804.2,1803.9,0.55]
[1746642669107,5.54246996,1804.3,1803.9,6.09343887]
[1746642669299,5.54246996,1804.3,1804.1,0.55]
[1746642669493,5.54202506,1804.4,1804.1,0.55]
[1746642669731,6.329,1804.7,1804.1,0.55]
[1746642670034,5.54220885,1804.4,1804.1,0.60542109]
[1746642670931,11.8703675,1804.7,1804.3,6.09207841]
[1746642671132,5.54176436,1804.5,1804.2,0.55]
[1746642671308,5.54180251,1804.5,1804.2,0.55]
[1746642671498,5.54159329,1804.6,1804.2,6.09261141]
[1746642671688,5.54159329,1804.6,1804.2,6.14784438]
[1746642671894,6.329,1804.7,1804.4,0.55]
[1746642672090,11.87012005,1804.7,1804.4,0.60541398]
[1746642672534,5.54142269,1804.6,1804.3,0.55]
[1746642672694,11.87012005,1804.7,1804.3,6.09212542]
[1746642672896,11.87012005,1804.7,1804.4,0.05541402]
[1746642673140,6.329,1804.7,1804.4,5.597285]
[1746642673301,5.54068617,1804.9,1804.5,6.09159834]
[1746642673504,5.54008345,1805.1,1804.6,0.05540842]
[1746642673742,5.54050991,1804.9,1804.5,6.14696821]
[1746642673941,5.54033665,1805.0,1804.6,5.54126173]
[1746642674162,5.5408878,1804.8,1804.5,0.55]
[1746642674339,5.54034546,1805.0,1804.7,0.55]
[1746642674539,11.86663749,1805.2,1804.8,5.59611418]
[1746642674741,5.5398646,1805.1,1804.9,0.55]
[1746642674946,5.54095429,1804.8,1804.5,0.55]
[1746642675561,5.54061127,1804.9,1804.5,0.55]
[1746642676069,5.54061127,1804.9,1804.7,0.55]
[1746642676599,5.54078014,1804.8,1804.5,6.09168405]
[1746642676885,1.74065021,1805.1,1804.5,0.55]
[1746642677177,5.54139421,1804.6,1804.4,0.55]
[1746642677405,5.54139421,1804.6,1804.3,3.0]
[1746642677687,5.54139421,1804.6,1803.9,6.329]
[1746642677688,5.54251724,1804.3,1803.9,6.329]
[1746642677983,5.54251724,1804.3,1804.1,0.55]
[1746642678284,5.5422185,1804.4,1803.9,11.87235303]
[1746642678440,11.08383265,1804.5,1804.1,5.5428882]
[1746642678791,11.86726612,1804.7,1804.4,0.55]
[1746642679139,5.54150644,1804.6,1804.4,0.55]
[1746642679371,13.05399273,1804.7,1804.4,0.55]
[1746642680041,5.54139759,1804.6,1804.4,0.55]
[1746642680239,5.54255639,1804.3,1804.0,3.0]
[1746642680443,11.08489634,1804.3,1803.9,11.50531851]
[1746642680643,5.54305897,1804.1,1803.8,0.8156]
[1746642680868,5.54337003,1804.0,1803.8,0.8156]
[1746642681675,5.54304845,1804.1,1803.8,0.8156]
[1746642681844,11.08623858,1804.1,1803.8,0.8156]
[1746642682492,5.5432552,1804.0,1803.8,0.8156]
[1746642682644,5.54272587,1804.2,1803.8,6.35918307]
[1746642682983,5.54272587,1804.2,1803.9,0.55]
[1746642682984,5.54296463,1804.1,1803.9,0.55]
[1746642683141,5.54323725,1804.0,1803.9,0.55]
[1746642683341,5.54323725,1804.0,1803.8,0.8156]
[1746642683675,5.54308309,1804.1,1803.8,0.8156]
[1746642684247,5.54323839,1804.0,1803.8,0.8156]
[1746642684647,5.54354454,1803.9,1803.8,1.3656]
[1746642684951,5.543098,1804.1,1803.8,0.8156]
[1746642685157,5.54280492,1804.2,1803.8,6.35927914]
[1746642685362,5.54210634,1804.4,1804.0,0.55]
[1746642685569,5.5417013,1804.5,1804.0,0.55]
[1746642685772,5.54247718,1804.3,1804.0,0.55]
[1746642686181,5.54186276,1804.5,1804.0,6.09320772]
[1746642686369,5.54221358,1804.4,1804.0,6.14848651]
[1746642686875,11.08448168,1804.4,1804.0,6.14848651]
[1746642687082,5.54221358,1804.4,1804.0,11.69153064]
[1746642687307,5.54061426,1804.9,1804.6,5.54136503]
[1746642687594,5.54048296,1804.9,1804.7,0.55]
[1746642687945,5.53999407,1805.1,1804.7,6.09108044]
[1746642688189,5.54025681,1805.0,1804.7,0.55]
[1746642688352,0.8116,1805.2,1804.7,0.55]
[1746642688546,5.54078014,1804.8,1804.7,0.55]
[1746642688862,5.54058414,1804.9,1804.7,0.55]
[1746642689180,5.54030173,1805.0,1804.6,0.55]
[1746642689343,5.53998944,1805.1,1804.8,0.55]
[1746642689545,5.54019731,1805.0,1804.8,0.55]
[1746642690186,5.54090799,1804.8,1804.6,0.55]
[1746642690368,5.54071268,1804.9,1804.6,0.55]
[1746642690547,5.54088484,1804.8,1804.6,0.55]
[1746642690879,5.54108716,1804.7,1804.6,0.55]
[1746642691080,5.54088484,1804.8,1804.6,0.55]
[1746642691384,5.54231557,1804.3,1804.2,0.7677]
[1746642691543,1.10814318,1804.8,1804.1,5.54288439]
[1746642691892,5.54238418,1804.3,1803.9,5.94401851]
[1746642692074,5.54238418,1804.3,1804.0,0.55]
[1746642692395,5.54185469,1804.5,1804.0,6.14848319]
[1746642692610,12.13712063,1804.5,1804.1,5.54281314]
[1746642692815,5.5420148,1804.4,1804.1,0.55]
[1746642693180,1.05327663,1804.5,1804.0,0.0554255]
[1746642693381,5.54184282,1804.5,1804.2,0.55]
[1746642693718,5.54184282,1804.5,1804.2,0.60542058]
[1746642694301,7.1271,1804.9,1804.4,0.55]
[1746642694302,5.54118674,1804.7,1804.4,0.55]
[1746642694866,5.54016697,1805.0,1804.7,0.55]
[1746642695200,0.8119,1805.2,1804.9,0.55]
[1746642695201,5.53966501,1805.2,1804.9,0.55]
[1746642695904,5.53934116,1805.3,1804.9,6.14563158]
[1746642696402,5.5395548,1805.2,1804.9,0.55]
[1746642696766,11.07890754,1805.3,1804.9,0.55]
[1746642697570,5.53956605,1805.2,1804.9,6.09037666]
[1746642697770,5.53956605,1805.2,1804.9,7.8494913]
[1746642698100,5.53997701,1805.1,1804.9,0.55]
[1746642698271,5.54013679,1805.1,1804.9,0.55]
[1746642698473,5.54014161,1805.1,1804.9,0.55]
[1746642698971,5.53973338,1805.2,1804.9,0.60540149]
[1746642699411,5.54047315,1804.9,1804.8,1.3339]
[1746642699571,5.54037254,1805.0,1804.8,1.3339]
[1746642699974,5.54003481,1805.1,1804.8,1.3339]
[1746642699975,5.54005449,1805.1,1804.9,0.55]
[1746642700719,5.53983039,1805.2,1804.9,0.55]
[1746642701016,11.07962292,1805.2,1804.9,0.55]
[1746642701227,5.53946142,1805.3,1804.9,0.55]
[1746642701512,5.53943344,1805.3,1804.9,6.77779425]
[1746642701689,5.53953204,1805.3,1805.1,0.55]
[1746642702097,5.5395524,1805.2,1805.1,0.55]
[1746642702719,5.5401662,1805.0,1804.9,0.55]
[1746642703080,5.53998896,1805.1,1804.9,0.55]
[1746642703500,5.53976603,1805.2,1804.9,6.09046791]
[1746642703700,5.53894202,1805.4,1804.9,0.55]
[1746642704031,5.53977557,1805.2,1804.9,0.55]
[1746642705982,11.07956807,1805.2,1804.9,0.55]
[1746642706181,5.54009531,1805.1,1804.9,0.55]
[1746642706682,5.5397049,1805.2,1804.9,0.55]
[1746642706683,5.53965043,1805.2,1804.9,0.55]
[1746642706883,11.07945317,1805.2,1804.9,0.55]
[1746642707084,5.53988025,1805.1,1804.9,0.55]
[1746642707306,5.53965043,1805.2,1804.9,0.55]
[1746642708110,5.53930665,1805.3,1804.9,6.09035558]
[1746642708332,5.53863689,1805.5,1805.1,0.55]
[1746642708333,5.53876832,1805.5,1805.1,0.55]
[1746642708480,5.53865925,1805.5,1805.3,0.55]
[1746642709089,5.53847489,1805.6,1805.3,0.55]
[1746642709293,11.86320704,1805.7,1805.5,0.55]
[1746642709499,17.40150647,1805.7,1805.5,0.55]
[1746642709806,17.40150647,1805.7,1805.3,0.55]
[1746642709807,5.53832521,1805.6,1805.3,0.55]
[1746642710482,5.53832521,1805.6,1805.3,6.08913281]
[1746642710684,11.86320704,1805.7,1805.3,11.62818899]
[1746642711023,5.53832521,1805.6,1805.5,0.55]
[1746642711197,5.53799231,1805.8,1805.5,0.55]
[1746642711198,5.53813946,1805.7,1805.5,0.55]
[1746642711616,11.07639449,1805.7,1805.5,0.55]
[1746642711831,5.53832521,1805.6,1805.5,0.55]
[1746642712030,5.53813946,1805.7,1805.5,0.55]
[1746642712542,11.07643325,1805.7,1805.5,0.55]
[1746642712838,5.53832521,1805.6,1805.5,0.55]
[1746642713041,5.53832521,1805.6,1805.3,0.55]
[1746642713258,5.53893873,1805.4,1805.3,0.55]
[1746642713538,5.53888675,1805.5,1805.2,0.7556]
[1746642713742,5.53888675,1805.5,1805.3,0.55]
[1746642714157,5.53881646,1805.5,1804.9,4.71664252]
[1746642714358,0.7689,1805.7,1804.6,0.7661]
[1746642714359,5.539728,1805.2,1804.6,0.7661]
[1746642714560,5.539728,1805.2,1805.0,0.7661]
[1746642714724,5.53938998,1805.3,1805.0,0.7661]
[1746642714923,5.53938998,1805.3,1805.1,0.55]
[1746642715763,5.53879553,1805.5,1805.1,6.08970727]
[1746642715920,5.53879553,1805.5,1805.1,6.83068202]
[1746642716121,5.53951576,1805.3,1805.1,0.55]
[1746642716471,5.53951576,1805.3,1804.8,10.71694519]
[1746642716472,5.54052136,1804.9,1804.8,0.7829]
[1746642716615,5.53998302,1805.1,1804.8,0.7829]
[1746642716824,5.54027986,1805.0,1804.9,0.55]
[1746642717641,5.53998302,1805.1,1804.9,0.55]
[1746642718264,5.5401662,1805.0,1804.9,0.55]
[1746642718419,6.35435666,1805.3,1804.7,0.55]
[1746642718624,5.54041633,1805.0,1804.7,0.55]
[1746642719054,5.54061605,1804.9,1804.7,0.55]
[1746642719328,5.54041633,1805.0,1804.7,6.0910763]
[1746642719638,5.54017444,1805.0,1804.7,0.55]
[1746642720161,5.54043632,1805.0,1804.7,0.55]
[1746642720358,5.54043632,1805.0,1804.7,6.14648833]
[1746642720658,5.54001451,1805.1,1804.7,13.23217227]
[1746642720858,5.53970041,1805.2,1804.9,0.55]
[1746642721045,5.53939413,1805.3,1805.0,6.31865174]
[1746642721468,0.7942,1805.7,1805.3,0.55]
[1746642721636,0.7942,1805.7,1805.4,0.55]
[1746642721637,5.53812125,1805.7,1805.4,0.55]
[1746642721826,11.0758732,1805.8,1805.4,7.82449739]
[1746642722025,5.53805935,1805.7,1805.4,7.82449739]
[1746642722240,5.53788509,1805.8,1805.4,7.82449739]
[1746642722457,5.53863195,1805.5,1805.4,2.23042909]
[1746642722769,5.53863195,1805.5,1805.4,0.55]
[1746642723061,5.53773282,1805.8,1805.2,1.3024]
[1746642723062,5.53801849,1805.7,1805.2,1.3024]
[1746642723239,5.53854222,1805.6,1805.3,0.55]
[1746642723561,5.53881728,1805.5,1805.3,0.55]
[1746642723936,5.53850811,1805.6,1805.3,0.55]
[1746642724254,5.53815482,1805.7,1805.3,0.55]
[1746642724426,11.07642151,1805.7,1805.3,6.77337569]
[1746642724827,5.53815482,1805.7,1805.3,6.77337569]
[1746642725161,5.53805051,1805.7,1805.5,0.55]
[1746642725361,5.53789459,1805.8,1805.5,0.55]
[1746642726033,5.53755274,1805.9,1805.6,0.7592]
[1746642726223,5.53773517,1805.8,1805.6,0.7592]
[1746642726429,5.53696802,1806.1,1805.7,6.08801571]
[1746642726630,20.7623,1806.3,1805.9,0.55]
[1746642726853,5.53665891,1806.2,1805.9,0.55]
[1746642727147,6.20223435,1806.5,1806.1,5.72631851]
[1746642727329,11.07207695,1806.4,1806.2,0.05535527]
[1746642727530,5.53606332,1806.4,1806.2,0.55]
[1746642727830,0.66666667,1806.5,1806.3,0.60536107]
[1746642728228,0.66666667,1806.5,1806.3,0.55]
[1746642728637,0.66666667,1806.5,1806.3,6.08600684]
[1746642728947,0.66666667,1806.5,1806.3,7.32349901]
[1746642729146,0.66666667,1806.5,1806.4,6.08587245]
[1746642729557,0.66666667,1806.5,1806.4,6.9617231]
[1746642730161,0.66666667,1806.5,1806.4,9.90637245]
[1746642730585,3.69903586,1806.9,1806.8,0.55]
[1746642731370,3.69903586,1806.9,1806.8,1.3264]
[1746642731571,9.23337644,1806.9,1806.8,0.55]
[1746642731778,3.69903586,1806.9,1806.8,0.55]
[1746642732476,3.69903586,1806.9,1806.8,6.08464688]
[1746642732638,5.53852505,1807.2,1806.8,6.08464688]
[1746642732978,5.53852505,1807.2,1807.0,0.55]
[1746642733136,0.005,1807.2,1806.9,0.60846469]
[1746642733478,0.005,1807.2,1806.6,3.8004]
[1746642733479,5.53434058,1806.9,1806.8,0.55]
[1746642733778,5.53402126,1807.1,1806.8,0.9560998]
[1746642733779,5.53372807,1807.1,1806.8,0.9560998]
[1746642734064,5.53372807,1807.1,1806.8,1.01143924]
[1746642734377,5.53859177,1807.2,1806.9,11.88840518]
[1746642734378,0.005,1807.2,1806.9,11.88840518]
[1746642734532,0.005,1807.2,1807.1,0.55]
[1746642735244,0.005,1807.2,1807.1,6.08372807]
[1746642735847,0.4334926,1807.6,1807.2,6.35112186]
[1746642736046,5.531892,1807.7,1807.6,0.55]
[1746642736259,0.7573,1808.3,1807.3,0.8057]
[1746642736260,0.7655,1807.9,1807.3,0.8057]
[1746642736475,5.53194352,1807.7,1807.4,0.55]
[1746642736672,5.53179467,1807.8,1807.4,0.6053221]
[1746642736843,0.7655,1807.9,1807.4,0.55]
[1746642737044,3.69903586,1808.5,1807.9,0.55]
[1746642737045,9.22852639,1808.5,1807.9,0.55]
[1746642737233,5.53005585,1808.3,1807.9,0.55]
[1746642737438,5.53127938,1807.9,1807.8,1.3557]
[1746642737746,5.53127938,1807.9,1807.8,0.95647659]
[1746642737941,5.53111564,1808.0,1807.8,0.95647659]
[1746642738142,5.53013852,1808.3,1807.9,0.55]
[1746642738349,5.5299379,1808.4,1808.1,0.55]
[1746642738649,5.52988126,1808.4,1808.1,0.55]
[1746642738863,3.69903586,1808.5,1808.4,6.07975005]
[1746642739185,3.69903586,1808.5,1808.4,1.321]
[1746642739344,3.69903586,1808.5,1808.4,6.85075005]
[1746642739550,9.22848015,1808.5,1808.4,1.321]
[1746642739796,3.69903586,1808.5,1808.4,1.321]
[1746642740148,0.03932017,1808.5,1808.4,9.85075005]
[1746642740446,0.03932017,1808.5,1808.4,11.90645704]
[1746642740648,0.8266,1808.9,1808.4,1.321]
[1746642740994,6.64248968,1809.3,1808.6,6.07903263]
[1746642741155,11.05625074,1809.0,1808.6,6.07903263]
[1746642741369,5.52873316,1808.8,1808.5,0.55]
[1746642741589,5.52737247,1809.2,1808.5,1.91943966]
[1746642741767,1.1154239,1809.3,1808.9,0.55]
[1746642741768,0.2888239,1809.3,1808.9,0.55]
[1746642742071,5.81590107,1809.3,1808.9,6.1332578]
[1746642742623,5.52730488,1809.2,1808.9,0.55]
[1746642742758,5.52730488,1809.2,1808.5,1.31415536]
[1746642742759,5.52938504,1808.6,1808.5,1.34]
[1746642742950,5.52869069,1808.8,1808.6,0.55]
[1746642743261,5.52883286,1808.7,1808.6,0.55]
[1746642743459,5.52883286,1808.7,1808.2,5.5300777]
[1746642743460,5.52883286,1808.7,1808.2,0.8332]
[1746642743648,5.53005585,1808.3,1808.2,0.8332]
[1746642743849,5.53005585,1808.3,1807.8,10.70771348]
[1746642743850,5.53005585,1808.3,1808.1,0.41674736]
[1746642744089,5.52988251,1808.4,1808.1,0.47204787]
[1746642744382,1.10594779,1808.4,1808.0,0.7846]
[1746642744585,0.55286907,1808.8,1808.1,5.5858898]
[1746642744792,6.27765284,1809.2,1808.2,6.08024109]
[1746642744793,5.52926841,1808.6,1808.2,6.08024109]
[1746642744964,5.52926841,1808.6,1808.3,0.05529171]
[1746642745151,5.52902829,1808.7,1808.3,5.58529898]
[1746642745344,5.52902829,1808.7,1808.4,0.55]
[1746642745549,5.52868559,1808.8,1808.5,0.7706]
[1746642745790,5.52844215,1808.9,1808.6,0.05528593]
[1746642746088,5.52844215,1808.9,1808.5,0.7706]
[1746642746089,5.52913856,1808.6,1808.5,1.3206]
[1746642746294,5.52913856,1808.6,1808.5,0.55]
[1746642746986,5.5296872,1808.5,1808.3,0.7706]
[1746642747186,5.52928812,1808.6,1808.3,0.7706]
[1746642747692,5.52897229,1808.7,1808.4,0.05529605]
[1746642747887,5.52872472,1808.8,1808.4,0.60529605]
[1746642748184,6.6340332,1808.9,1808.5,0.55]
[1746642748388,0.2888239,1809.3,1809.0,0.55]
[1746642748560,0.2888239,1809.3,1809.1,0.7758]
[1746642748761,0.2888239,1809.3,1809.2,5.58256995]
[1746642748976,0.2888239,1809.3,1809.1,0.7758]
[1746642749200,5.52730488,1809.2,1808.8,5.95211851]
[1746642749352,5.52730488,1809.2,1808.9,0.55]
[1746642749553,5.81593569,1809.3,1808.9,0.55]
[1746642749895,5.81595828,1809.3,1808.9,0.55]
[1746642750095,0.2888239,1809.3,1808.9,0.55]
[1746642750457,5.81598205,1809.3,1808.9,0.60527296]
[1746642750793,5.52772484,1809.1,1808.9,0.55]
[1746642751088,5.52791597,1809.0,1808.9,0.55]
[1746642751286,5.52813655,1809.0,1808.6,7.13397921]
[1746642751501,5.52813655,1809.0,1808.6,12.66304141]
[1746642751677,5.52773778,1809.1,1808.7,5.52867003]
[1746642751882,5.52773778,1809.1,1808.8,0.55]
[1746642752364,5.52813504,1809.0,1808.8,0.55]
[1746642752567,5.52817491,1809.0,1808.8,0.55]
[1746642752771,5.52879598,1808.8,1808.7,0.55]
[1746642752974,5.52806719,1809.0,1808.7,0.55]
[1746642753499,5.52822178,1808.9,1808.7,0.55]
[1746642753797,11.0562701,1809.0,1808.7,0.55]
[1746642754007,5.5285272,1808.8,1808.7,0.55]
[1746642754173,5.52838775,1808.9,1808.7,0.55]
[1746642754375,5.52795485,1809.0,1808.4,0.69058266]
[1746642754588,5.52795485,1809.0,1808.3,0.8108]
[1746642754589,5.52791597,1809.0,1808.3,0.8108]
[1746642754892,5.52994721,1808.4,1808.1,6.70154373]
[1746642755094,5.52960577,1808.5,1808.1,6.70154373]
[1746642755280,0.7987,1808.9,1808.4,5.5294666]
[1746642755453,5.52869962,1808.8,1808.6,0.55]
[1746642755658,5.52869962,1808.8,1808.3,0.55]
[1746642755859,5.52806906,1809.0,1808.2,3.7517]
[1746642756198,5.5296295,1808.5,1808.2,0.80699483]
[1746642756388,5.53001151,1808.4,1808.2,0.80699483]
[1746642756578,5.52935192,1808.6,1808.2,7.08818225]
[1746642756790,5.52935192,1808.6,1808.3,0.55]
[1746642756990,5.52962153,1808.5,1808.3,0.55]
[1746642757381,8.5277221,1809.1,1807.5,0.27432261]
[1746642757382,0.7833,1808.4,1807.5,0.27432261]
[1746642757597,5.53234206,1807.6,1807.2,6.31264357]
[1746642757769,5.53272182,1807.5,1807.3,0.63126436]
[1746642758105,0.7833,1808.2,1807.1,5.53360994]
[1746642758106,5.53116887,1808.0,1807.6,0.7892]
[1746642758308,0.7833,1808.2,1807.6,0.8445125]
[1746642758309,5.53147722,1807.9,1807.6,0.8445125]
[1746642758463,6.31370905,1808.2,1807.7,6.08179049]
[1746642758464,5.53079297,1808.1,1807.7,6.08179049]
[1746642758807,5.53003939,1808.4,1808.0,0.55]
[1746642758962,5.52993979,1808.4,1808.0,6.13612702]
[1746642759166,5.52993979,1808.4,1808.2,0.55]
[1746642759495,5.52993979,1808.4,1808.1,0.6136127]
[1746642759496,5.53036168,1808.2,1808.1,1.1636127]
[1746642759696,5.53109527,1808.0,1807.9,0.55]
[1746642759901,5.53066755,1808.1,1807.9,0.55]
[1746642760199,5.53127011,1808.0,1807.8,0.7521]
[1746642760703,5.53052935,1808.2,1807.9,0.55]
[1746642760998,5.53070115,1808.1,1807.9,0.55]
[1746642761878,5.53033119,1808.3,1807.9,0.6053076]
[1746642762086,5.53055618,1808.2,1807.9,1.23887801]
[1746642762396,5.52948398,1808.5,1807.9,1.23887801]
[1746642762603,5.53022388,1808.3,1807.9,6.7701002]
[1746642762990,5.530381,1808.2,1807.9,6.7701002]
[1746642763187,7.0833,1808.8,1808.0,3.55]
[1746642763508,7.0833,1808.8,1807.9,0.74418103]
[1746642763509,5.52916529,1808.6,1808.2,6.08017837]
[1746642763665,5.52916529,1808.6,1808.4,0.55]
[1746642763864,5.52895993,1808.7,1808.4,0.55]
[1746642764065,5.52944429,1808.5,1808.4,0.55]
[1746642764261,5.52944429,1808.5,1808.1,9.6434075]
[1746642764262,5.52959436,1808.5,1808.2,0.55]
[1746642764516,5.52880305,1808.8,1808.4,0.55]
[1746642764801,5.52944429,1808.5,1808.4,0.55]
[1746642764976,5.52924692,1808.6,1808.4,0.55]
[1746642765176,5.52933171,1808.6,1808.4,0.55]
[1746642765425,5.52903118,1808.7,1808.4,0.55]
[1746642765565,5.52903118,1808.7,1808.4,1.23923537]
[1746642766094,5.52870056,1808.8,1808.5,0.05529324]
[1746642766289,5.52899585,1808.7,1808.5,0.05529324]
[1746642766480,5.52871167,1808.8,1808.5,0.05529324]
[1746642766869,5.52944429,1808.5,1808.4,0.55]
[1746642767201,5.5292315,1808.6,1808.4,0.55]
[1746642767501,5.52903884,1808.7,1808.4,0.55]
[1746642767805,5.5282221,1808.9,1808.4,1.23922203]
[1746642768101,5.52914905,1808.6,1808.4,1.23922203]
[1746642768500,5.52944429,1808.5,1808.3,0.55]
[1746642768895,5.52975005,1808.4,1808.3,0.55]
[1746642769616,5.53100472,1808.0,1807.8,0.7847]
[1746642769780,5.53127938,1807.9,1807.6,5.53218013]
[1746642769978,5.53158535,1807.8,1807.7,0.55321801]
[1746642770286,5.53158535,1807.8,1807.6,0.8254]
[1746642770461,5.53036168,1808.2,1807.4,6.36104743]